lending/lending_fUSD_20240830
["ID","MTS","AMOUNT","RATE_DAILY","PERIOD"]
[336671202,1725006671027,-7217.32,0.00024927,4]
[336671203,1725006671037,-151.0,0.00024927,7]
[336671204,1725006671047,-7477.8,0.00024927,4]
[336671205,1725006671056,-544.46,0.00024927,4]
[336671206,1725006671066,-544.46,0.00024927,4]
[336671207,1725006671076,-5770.62,0.00024927,4]
[336671208,1725006671085,-277.110349,0.00024927,7]
[336671209,1725006671095,-277.110349,0.00024927,7]
[336671210,1725006671105,-1542.74,0.00024927,4]
[336671211,1725006671115,-1542.74,0.00024927,4]
[336671212,1725006671124,-6050.84,0.00024927,4]
[336671213,1725006671134,-6050.84,0.00024927,4]
[336671214,1725006671144,-2346.08,0.00024927,4]
[336671215,1725006671153,-6050.84,0.00024927,4]
[336671216,1725006671162,-6050.84,0.00024927,4]
[336671217,1725006671172,-6050.84,0.00024927,4]
[336671218,1725006671182,-6050.93266817,0.00024927,4]
[336671219,1725006671191,-3818.25,0.00024927,4]
[336671220,1725006671201,-151.0,0.00024927,7]
[336671221,1725006671211,-3143.2,0.00024927,4]
[336671222,1725006671220,-3143.2,0.00024927,4]
[336671223,1725006671230,-3417.55,0.00024927,4]
[336671224,1725006671240,-500.0,0.00024927,4]
[336671225,1725006671250,-370.06,0.00024927,4]
[336671226,1725006671260,-4921.38,0.00024927,4]
[336671227,1725006671270,-4921.38,0.00024927,4]
[336671228,1725006671279,-2428.64,0.00024927,4]
[336671229,1725006671289,-3898.39,0.00024927,4]
[336671230,1725006671299,-4991.04,0.00024927,4]
[336671231,1725006671309,-2830.2,0.00024927,4]
[336671232,1725006671318,-2830.2,0.00024927,4]
[336671233,1725006671328,-3040.42,0.00024927,4]
[336671234,1725006671337,-151.0,0.00024927,7]
[336671235,1725006671347,-218.895885,0.00024927,7]
[336671236,1725006671357,-2773.11,0.00024927,4]
[336671237,1725006671367,-218.895885,0.00024927,7]
[336671238,1725006671377,-2773.11,0.00024927,4]
[336671239,1725006671387,-2705.55,0.00024927,4]
[336671240,1725006671396,-5115.61,0.00024927,4]
[336671241,1725006671406,-5115.61,0.00024927,4]
[336671242,1725006671416,-2615.24,0.00024927,4]
[336671243,1725006671426,-2615.24,0.00024927,4]
[336671244,1725006671435,-2615.24,0.00024927,4]
[336671245,1725006671445,-2615.24,0.00024927,4]
[336671246,1725006671455,-2615.24,0.00024927,4]
[336671247,1725006671464,-2615.3074345,0.00024927,4]
[336671248,1725006671474,-3728.45,0.00024927,4]
[336671249,1725006671486,-3728.45,0.00024927,4]
[336671250,1725006671496,-3811.16,0.00024927,4]
[336671251,1725006671506,-3929.93,0.00024927,4]
[336671252,1725006671516,-3929.93,0.00024927,4]
[336671253,1725006671526,-2932.95,0.00024927,4]
[336671254,1725006671536,-2932.95,0.00024927,4]
[336671255,1725006671546,-2932.95,0.00024927,4]
[336671256,1725006671556,-2932.95,0.00024927,4]
[336671257,1725006671566,-2932.95,0.00024927,4]
[336671258,1725006671575,-2933.11355965,0.00024927,4]
[336671259,1725006671585,-3943.59,0.00024927,4]
[336671260,1725006671595,-151.0,0.00024927,7]
[336671261,1725006671604,-3895.67,0.00024927,4]
[336671262,1725006671614,-3720.31,0.00024927,4]
[336671263,1725006671627,-3720.31,0.00024927,4]
[336671264,1725006671636,-3028.39,0.00024927,4]
[336671265,1725006671646,-3028.39,0.00024927,4]
[336671266,1725006671656,-151.0,0.00024927,7]
[336671267,1725006671665,-3028.39,0.00024927,4]
[336671268,1725006671675,-3028.39,0.00024927,4]
[336671269,1725006671685,-3028.39,0.00024927,4]
[336671270,1725006671694,-3028.52977109,0.00024927,4]
[336671271,1725006671703,-5734.72,0.00024927,4]
[336671272,1725006671714,-4736.83,0.00024927,4]
[336671273,1725006671724,-4736.83,0.00024927,4]
[336671274,1725006671735,-4736.83,0.00024927,4]
[336671275,1725006671745,-4736.83,0.00024927,4]
[336671276,1725006671755,-6696.85,0.00024927,4]
[336671277,1725006671764,-4736.83,0.00024927,4]
[336671278,1725006671774,-4736.95175586,0.00024927,4]
[336671279,1725006671784,-6043.94,0.00024927,4]
[336671280,1725006671793,-7543.87,0.00024927,4]
[336671281,1725006671802,-7543.87,0.00024927,4]
[336671282,1725006671812,-3691.81,0.00024927,4]
[336671283,1725006671822,-3691.81,0.00024927,4]
[336671284,1725006671831,-3691.81,0.00024927,4]
[336671285,1725006671842,-5789.23,0.00024927,4]
[336671286,1725006671852,-3691.81,0.00024927,4]
[336671287,1725006671862,-3691.81,0.00024927,4]
[336671288,1725006671873,-3691.97775161,0.00024927,4]
[336671289,1725006671884,-4036.15,0.00024927,4]
[336671290,1725006671896,-4036.15,0.00024927,4]
[336671291,1725006671906,-4630.74,0.00024927,4]
[336671292,1725006671916,-5171.06,0.00024927,4]
[336671293,1725006671926,-4230.67,0.00024927,4]
[336671294,1725006671936,-4230.67,0.00024927,4]
[336671295,1725006671946,-154.246852,0.00024927,7]
[336671296,1725006671955,-4823.33,0.00024927,4]
[336671297,1725006671966,-2627.79,0.00024927,4]
[336671298,1725006671977,-2627.79,0.00024927,4]
[336671299,1725006671987,-2627.79,0.00024927,4]
[336671300,1725006671996,-2627.79,0.00024927,4]
[336671301,1725006672005,-2627.79,0.00024927,4]
[336671302,1725006672015,-2627.95288038,0.00024927,4]
[336671303,1725006672024,-3632.35,0.00024927,4]
[336671304,1725006672033,-2562.81,0.00024927,4]
[336671305,1725006672042,-3367.03,0.00024927,4]
[336671306,1725006672051,-151.0,0.00024927,7]
[336671307,1725006672061,-620.06,0.00024927,4]
[336671308,1725006672070,-5111.25,0.00024927,4]
[336671309,1725006672080,-5111.25,0.00024927,4]
[336671310,1725006672090,-5111.25,0.00024927,4]
[336671311,1725006672099,-5111.25,0.00024927,4]
[336671312,1725006672108,-5111.25,0.00024927,4]
[336671313,1725006672118,-5111.39972322,0.00024927,4]
[336671314,1725006672127,-2997.55,0.00024927,4]
[336671315,1725006672136,-151.0,0.00024927,7]
[336671316,1725006672146,-5617.5,0.00024927,4]
[336671317,1725006672155,-155.035272,0.00024927,7]
[336671318,1725006672165,-3200.5,0.00024927,4]
[336671319,1725006672174,-3553.93,0.00024927,4]
[336671320,1725006672184,-151.0,0.00024927,7]
[336671321,1725006672194,-3420.48,0.00024927,4]
[336671322,1725006672203,-151.0,0.00024927,7]
[336671323,1725006672213,-2800.27,0.00024927,4]
[336671324,1725006672222,-195.693127,0.00024927,7]
[336671325,1725006672232,-151.0,0.00024927,7]
[336671326,1725006672241,-195.693127,0.00024927,7]
[336671327,1725006672251,-151.0,0.00024927,7]
[336671328,1725006672260,-2641.88,0.00024927,4]
[336671329,1725006672270,-2641.88,0.00024927,4]
[336671330,1725006672279,-2641.88,0.00024927,4]
[336671331,1725006672289,-2641.88,0.00024927,4]
[336671332,1725006672298,-2641.88,0.00024927,4]
[336671333,1725006672307,-2642.00008444,0.00024927,4]
[336671334,1725006672317,-151.0,0.00024927,7]
[336671335,1725006672327,-288.501781,0.00024927,7]
[336671336,1725006672336,-4476.44,0.00024927,4]
[336671337,1725006672345,-4476.44,0.00024927,4]
[336671338,1725006672646,-151.0,0.00024927,7]
[336671339,1725006672667,-4476.44,0.00024927,4]
[336671340,1725006672677,-4476.44,0.00024927,4]
[336671341,1725006672686,-4476.44,0.00024927,4]
[336671342,1725006672696,-4476.59533947,0.00024927,4]
[336671343,1725006672706,-4126.86,0.00024927,4]
[336671344,1725006672715,-4126.86,0.00024927,4]
[336671345,1725006672725,-4126.86,0.00024927,4]
[336671346,1725006672735,-4126.86,0.00024927,4]
[336671347,1725006672745,-4126.86,0.00024927,4]
[336671348,1725006672754,-4126.98571468,0.00024927,4]
[336671349,1725006672764,-151.0,0.00024927,7]
[336671350,1725006672773,-151.0,0.00024927,7]
[336671351,1725006672782,-151.0,0.00024927,7]
[336671352,1725006672791,-6224.19,0.00024927,4]
[336671353,1725006672801,-6224.19,0.00024927,4]
[336671354,1725006672810,-6224.19,0.00024927,4]
[336671355,1725006672819,-6224.19,0.00024927,4]
[336671356,1725006672829,-6224.19,0.00024927,4]
[336671357,1725006672838,-6224.35330509,0.00024927,4]
[336671358,1725006672847,-3232.45,0.00024927,4]
[336671359,1725006672857,-3232.45,0.00024927,4]
[336671360,1725006672866,-3232.45,0.00024927,4]
[336671361,1725006672876,-3232.45,0.00024927,4]
[336671362,1725006672885,-3232.45,0.00024927,4]
[336671363,1725006672895,-3232.63712568,0.00024927,4]
[336671364,1725006672904,-151.0,0.00024927,7]
[336671365,1725006672913,-4112.03,0.00024927,4]
[336671366,1725006672924,-4112.03,0.00024927,4]
[336671367,1725006672935,-4112.03,0.00024927,4]
[336671368,1725006672946,-4112.03,0.00024927,4]
[336671369,1725006672957,-240.692876,0.00024927,7]
[336671370,1725006672967,-4112.03,0.00024927,4]
[336671371,1725006672978,-4112.25063045,0.00024927,4]
[336671372,1725006672989,-240.692876,0.00024927,7]
[336671373,1725006672998,-2869.11,0.00024927,4]
[336671374,1725006673008,-2998.8,0.00024927,4]
[336671375,1725006673019,-2998.8,0.00024927,4]
[336671376,1725006673029,-2998.8,0.00024927,4]
[336671377,1725006673038,-2998.8,0.00024927,4]
[336671378,1725006673047,-2998.8,0.00024927,4]
[336671379,1725006673057,-2998.81584038,0.00024927,4]
[336671380,1725006673066,-2667.31,0.00024927,4]
[336671381,1725006673075,-2667.31,0.00024927,4]
[336671382,1725006673084,-2667.31,0.00024927,4]
[336671383,1725006673093,-2667.31,0.00024927,4]
[336671384,1725006673102,-2667.31,0.00024927,4]
[336671385,1725006673111,-2667.4391174,0.00024927,4]
[336671386,1725006673122,-2581.73,0.00024927,4]
[336671387,1725006673133,-2581.73,0.00024927,4]
[336671388,1725006673144,-2581.73,0.00024927,4]
[336671389,1725006673155,-2581.73,0.00024927,4]
[336671390,1725006673165,-2581.73,0.00024927,4]
[336671391,1725006673175,-2581.82821401,0.00024927,4]
[336671392,1725006673186,-2555.23,0.00024927,4]
[336671393,1725006673199,-2234.28,0.00024927,4]
[336671394,1725006673209,-2462.34,0.00024927,4]
[336671395,1725006673218,-2462.34,0.00024927,4]
[336671396,1725006673228,-2462.34,0.00024927,4]
[336671397,1725006673238,-2807.46,0.00024927,4]
[336671398,1725006673247,-2462.34,0.00024927,4]
[336671399,1725006673258,-2462.34,0.00024927,4]
[336671400,1725006673269,-2462.37582732,0.00024927,4]
[336671401,1725006673281,-1273.65317,0.00024927,7]
[336671402,1725006673290,-2732.28,0.00024927,4]
[336671403,1725006673301,-4670.24,0.00024927,4]
[336671404,1725006673311,-4670.24,0.00024927,4]
[336671405,1725006673323,-4670.24,0.00024927,4]
[336671406,1725006673332,-4670.24,0.00024927,4]
[336671407,1725006673341,-1273.65317,0.00024927,7]
[336671408,1725006673351,-4670.24,0.00024927,4]
[336671409,1725006673361,-4670.25172606,0.00024927,4]
[336671410,1725006673370,-3290.42,0.00024927,4]
[336671411,1725006673379,-208.335045,0.00024927,7]
[336671412,1725006673389,-3098.32,0.00024927,4]
[336671413,1725006673399,-3098.32,0.00024927,4]
[336671414,1725006673410,-3098.32,0.00024927,4]
[336671415,1725006673420,-3098.32,0.00024927,4]
[336671416,1725006673431,-3098.32,0.00024927,4]
[336671417,1725006673441,-3098.52892364,0.00024927,4]
[336671418,1725006673450,-208.335045,0.00024927,7]
[336671419,1725006673460,-793.13,0.00024927,4]
[336671420,1725006673470,-793.13,0.00024927,4]
[336671421,1725006673480,-793.13,0.00024927,4]
[336671422,1725006673490,-793.13,0.00024927,4]
[336671423,1725006673499,-793.13,0.00024927,4]
[336671424,1725006673512,-793.26,0.00024927,4]
[336671425,1725006673521,-4057.64,0.00024927,4]
[336671426,1725006673530,-270.650385,0.00024927,7]
[336671427,1725006673542,-270.650385,0.00024927,7]
[336671428,1725006673552,-151.0,0.00024927,7]
[336671429,1725006673562,-2353.17,0.00024927,4]
[336671430,1725006673572,-2545.18,0.00024927,4]
[336671431,1725006673583,-3397.23,0.00024927,4]
[336671432,1725006673593,-3338.86,0.00024927,4]
[336671433,1725006673602,-388.869784,0.00024927,7]
[336671434,1725006673612,-388.869784,0.00024927,7]
[336671435,1725006673623,-3078.45,0.00024927,4]
[336671436,1725006673633,-3078.45,0.00024927,4]
[336671437,1725006673644,-3078.45,0.00024927,4]
[336671438,1725006673653,-3078.45,0.00024927,4]
[336671439,1725006673663,-3078.45,0.00024927,4]
[336671440,1725006673674,-200.254698,0.00024927,7]
[336671441,1725006673683,-3078.49820306,0.00024927,4]
[336671442,1725006673694,-200.254698,0.00024927,7]
[336671443,1725006673704,-388.869784,0.00024927,7]
[336671444,1725006673717,-388.869784,0.00024927,7]
[336671445,1725006673728,-2500.0,0.00024927,5]
[336671446,1725006673739,-2500.0,0.00024927,5]
[336671447,1725006673749,-739.2760378,0.00024928,4]
[336671448,1725006673759,-1779.85,0.00024928,4]
[336671449,1725006673769,-1779.85,0.00024928,4]
[336671450,1725006673779,-1779.85,0.00024928,4]
[336671451,1725006673789,-1779.85,0.00024928,4]
[336671452,1725006673798,-1779.89,0.00024928,4]
[336671453,1725006673808,-910.38,0.00024928,4]
[336671454,1725006673818,-910.38,0.00024928,4]
[336671455,1725006673827,-910.38,0.00024928,4]
[336671456,1725006673836,-910.38,0.00024928,4]
[336671457,1725006673846,-910.38,0.00024928,4]
[336671458,1725006673856,-910.38,0.00024928,4]
[336671459,1725006673866,-910.55135481,0.00024928,4]
[336671460,1725006673876,-600.6,0.00024928,4]
[336671461,1725006673885,-600.6,0.00024928,4]
[336671462,1725006673895,-600.6,0.00024928,4]
[336671463,1725006673904,-600.6,0.00024928,4]
[336671464,1725006673914,-600.6,0.00024928,4]
[336671465,1725006673923,-600.80631115,0.00024928,4]
[336671466,1725006673933,-1064.29,0.00024928,4]
[336671467,1725006673943,-1064.29,0.00024928,4]
[336671468,1725006673953,-1064.29,0.00024928,4]
[336671469,1725006673963,-1064.29,0.00024928,4]
[336671470,1725006673973,-1064.29,0.00024928,4]
[336671471,1725006673983,-1064.29,0.00024928,4]
[336671472,1725006673992,-1064.39048803,0.00024928,4]
[336671473,1725006674002,-500.0,0.00024928,4]
[336671474,1725006674012,-522.02,0.00024928,4]
[336671475,1725006674022,-366.8,0.00024928,4]
[336671476,1725006674032,-731.82,0.00024928,4]
[336671477,1725006674041,-731.82,0.00024928,4]
[336671478,1725006674051,-731.82,0.00024928,4]
[336671479,1725006674061,-731.82,0.00024928,4]
[336671480,1725006674071,-731.82,0.00024928,4]
[336671481,1725006674080,-731.94,0.00024928,4]
[336671482,1725006674089,-500.0,0.00024928,4]
[336671483,1725006674099,-500.0,0.00024928,4]
[336671484,1725006674109,-500.0,0.00024928,4]
[336671485,1725006674118,-500.0,0.00024928,4]
[336671486,1725006674127,-500.0,0.00024928,4]
[336671487,1725006674137,-324.52,0.00024928,4]
[336671488,1725006674146,-941.66,0.00024928,4]
[336671489,1725006674155,-941.66,0.00024928,4]
[336671490,1725006674165,-941.66,0.00024928,4]
[336671491,1725006674175,-941.66,0.00024928,4]
[336671492,1725006674184,-941.66,0.00024928,4]
[336671493,1725006674195,-941.82,0.00024928,4]
[336671494,1725006674204,-500.0,0.00024928,4]
[336671495,1725006674215,-500.0,0.00024928,4]
[336671496,1725006674226,-255.14487951,0.00024928,4]
[336671497,1725006674237,-500.0,0.00024928,4]
[336671498,1725006674246,-257.51,0.00024928,4]
[336671499,1725006674256,-862.814066,0.00024928,4]
[336671500,1725006674266,-862.814066,0.00024928,4]
[336671501,1725006674276,-862.814066,0.00024928,4]
[336671502,1725006674286,-500.0,0.00024928,4]
[336671503,1725006674296,-500.0,0.00024928,4]
[336671504,1725006674306,-265.14,0.00024928,4]
[336671505,1725006674316,-500.0,0.00024928,4]
[336671506,1725006674326,-500.0,0.00024928,4]
[336671507,1725006674336,-500.0,0.00024928,4]
[336671508,1725006674346,-500.0,0.00024928,4]
[336671509,1725006674355,-510.34,0.00024928,4]
[336671510,1725006674364,-500.0,0.00024928,4]
[336671511,1725006674374,-510.34,0.00024928,4]
[336671512,1725006674383,-510.34,0.00024928,4]
[336671513,1725006674392,-510.34,0.00024928,4]
[336671514,1725006674401,-510.34,0.00024928,4]
[336671515,1725006674410,-510.34,0.00024928,4]
[336671516,1725006674420,-510.34,0.00024928,4]
[336671517,1725006674429,-510.34,0.00024928,4]
[336671518,1725006674438,-500.0,0.00024928,4]
[336671519,1725006674447,-500.0,0.00024928,4]
[336671520,1725006674457,-500.0,0.00024928,4]
[336671521,1725006674466,-500.0,0.00024928,4]
[336671522,1725006674475,-500.40465747,0.00024928,4]
[336671523,1725006674486,-500.0,0.00024928,4]
[336671524,1725006674498,-500.0,0.00024928,4]
[336671525,1725006674507,-500.0,0.00024928,4]
[336671526,1725006674517,-500.0,0.00024928,4]
[336671527,1725006674526,-500.0,0.00024928,4]
[336671528,1725006674536,-500.0,0.00024928,4]
[336671529,1725006674546,-520.95,0.00024928,4]
[336671530,1725006674555,-500.0,0.00024928,4]
[336671531,1725006674565,-500.0,0.00024928,4]
[336671532,1725006674575,-375.9,0.00024928,4]
[336671533,1725006674584,-500.0,0.00024928,4]
[336671534,1725006674593,-500.0,0.00024928,4]
[336671535,1725006674603,-500.0,0.00024928,4]
[336671536,1725006674613,-500.0,0.00024928,4]
[336671537,1725006674624,-500.0,0.00024928,4]
[336671538,1725006674635,-500.0,0.00024928,4]
[336671539,1725006674645,-500.0,0.00024928,4]
[336671540,1725006674654,-500.0,0.00024928,4]
[336671541,1725006674664,-500.0,0.00024928,4]
[336671542,1725006674674,-500.0,0.00024928,4]
[336671543,1725006674683,-500.0,0.00024928,4]
[336671544,1725006674692,-500.0,0.00024928,4]
[336671545,1725006674702,-500.0,0.00024928,4]
[336671546,1725006674713,-500.0,0.00024928,4]
[336671547,1725006674724,-500.0,0.00024928,4]
[336671548,1725006674734,-500.0,0.00024928,4]
[336671549,1725006674744,-500.0,0.00024928,4]
[336671550,1725006674753,-500.0,0.00024928,4]
[336671551,1725006674762,-500.0,0.00024928,4]
[336671552,1725006674771,-500.0,0.00024928,4]
[336671553,1725006674781,-500.0,0.00024928,4]
[336671554,1725006674791,-500.0,0.00024928,4]
[336671555,1725006674801,-500.0,0.00024928,4]
[336671556,1725006674811,-500.0,0.00024928,4]
[336671557,1725006674820,-500.0,0.00024928,4]
[336671558,1725006674831,-265.14,0.00024928,4]
[336671559,1725006674840,-500.0,0.00024928,4]
[336671560,1725006674851,-500.0,0.00024928,4]
[336671561,1725006674860,-500.0,0.00024928,4]
[336671562,1725006674869,-500.0,0.00024928,4]
[336671563,1725006674879,-500.0,0.00024928,4]
[336671564,1725006674889,-500.0,0.00024928,4]
[336671565,1725006674899,-541.47556711,0.00024928,4]
[336671566,1725006674908,-500.0,0.00024928,4]
[336671567,1725006674917,-500.0,0.00024928,4]
[336671568,1725006674927,-500.0,0.00024928,4]
[336671569,1725006674936,-500.0,0.00024928,4]
[336671570,1725006674946,-500.0,0.00024928,4]
[336671571,1725006674956,-500.0,0.00024928,4]
[336671572,1725006674966,-500.0,0.00024928,4]
[336671573,1725006674976,-500.0,0.00024928,4]
[336671574,1725006674987,-500.5746323,0.00024928,4]
[336671575,1725006674996,-500.0,0.00024928,4]
[336671576,1725006675006,-500.0,0.00024928,4]
[336671577,1725006675015,-500.0,0.00024928,4]
[336671578,1725006675025,-500.0,0.00024928,4]
[336671579,1725006675034,-500.0,0.00024928,4]
[336671580,1725006675044,-500.0,0.00024928,4]
[336671581,1725006675053,-500.0,0.00024928,4]
[336671582,1725006675066,-500.0,0.00024928,4]
[336671583,1725006675075,-839.51,0.00024928,4]
[336671584,1725006675084,-839.51,0.00024928,4]
[336671585,1725006675093,-839.51,0.00024928,4]
[336671586,1725006675103,-839.51,0.00024928,4]
[336671587,1725006675112,-839.51,0.00024928,4]
[336671588,1725006675122,-839.51,0.00024928,4]
[336671589,1725006675131,-839.51,0.00024928,4]
[336671590,1725006675140,-839.51,0.00024928,4]
[336671591,1725006675150,-500.0,0.00024928,4]
[336671592,1725006675159,-500.0,0.00024928,4]
[336671593,1725006675169,-500.0,0.00024928,4]
[336671594,1725006675178,-579.14809754,0.00024928,4]
[336671595,1725006675187,-500.0,0.00024928,4]
[336671596,1725006675196,-500.0,0.00024928,4]
[336671597,1725006675204,-500.0,0.00024928,4]
[336671598,1725006675214,-500.0,0.00024928,4]
[336671599,1725006675223,-500.0,0.00024928,4]
[336671600,1725006675232,-500.0,0.00024928,4]
[336671601,1725006675241,-453.8130791,0.00024928,4]
[336671602,1725006675250,-500.0,0.00024928,4]
[336671603,1725006675259,-500.0,0.00024928,4]
[336671604,1725006675268,-500.0,0.00024928,4]
[336671605,1725006675276,-500.0,0.00024928,4]
[336671606,1725006675285,-500.0,0.00024928,4]
[336671607,1725006675294,-500.0,0.00024928,4]
[336671608,1725006675303,-500.0,0.00024928,4]
[336671609,1725006675312,-500.0,0.00024928,4]
[336671610,1725006675321,-500.0,0.00024928,4]
[336671611,1725006675330,-500.0,0.00024928,4]
[336671612,1725006675339,-500.0,0.00024928,4]
[336671613,1725006675348,-500.0,0.00024928,4]
[336671614,1725006675357,-500.0,0.00024928,4]
[336671615,1725006675366,-500.0,0.00024928,4]
[336671616,1725006675375,-482.78983245,0.00024928,4]
[336671617,1725006675384,-500.0,0.00024928,4]
[336671618,1725006675393,-500.0,0.00024928,4]
[336671619,1725006675402,-500.0,0.00024928,4]
[336671620,1725006675411,-500.0,0.00024928,4]
[336671621,1725006675420,-500.0,0.00024928,4]
[336671622,1725006675429,-381.52,0.00024928,4]
[336671623,1725006675439,-500.0,0.00024928,4]
[336671624,1725006675447,-500.0,0.00024928,4]
[336671625,1725006675456,-449.17792645,0.00024928,4]
[336671626,1725006675465,-559.36,0.00024928,4]
[336671627,1725006675474,-559.36,0.00024928,4]
[336671628,1725006675484,-559.36,0.00024928,4]
[336671629,1725006675494,-559.36,0.00024928,4]
[336671630,1725006675503,-559.36,0.00024928,4]
[336671631,1725006675512,-559.36,0.00024928,4]
[336671632,1725006675521,-559.36,0.00024928,4]
[336671633,1725006675530,-559.36,0.00024928,4]
[336671634,1725006675539,-3164.88,0.00024928,4]
[336671635,1725006675549,-3164.88,0.00024928,4]
[336671636,1725006675558,-3164.88,0.00024928,4]
[336671637,1725006675567,-3164.88,0.00024928,4]
[336671638,1725006675578,-3164.88,0.00024928,4]
[336671639,1725006675587,-3164.88,0.00024928,4]
[336671640,1725006675596,-3164.88,0.00024928,4]
[336671641,1725006675606,-3164.88,0.00024928,4]
[336671642,1725006675615,-500.0,0.00024928,4]
[336671643,1725006675626,-317.6,0.00024928,4]
[336671644,1725006675638,-3607.97,0.00024928,4]
[336671645,1725006675647,-3607.97,0.00024928,4]
[336671646,1725006675657,-500.0,0.00024928,4]
[336671647,1725006675666,-3607.97,0.00024928,4]
[336671648,1725006675676,-3607.97,0.00024928,4]
[336671649,1725006675686,-500.0,0.00024928,4]
[336671650,1725006675695,-500.0,0.00024928,4]
[336671651,1725006675705,-216.25,0.00024928,4]
[336671652,1725006675715,-500.0,0.00024928,4]
[336671653,1725006675724,-3607.97,0.00024928,4]
[336671654,1725006675733,-3607.97,0.00024928,4]
[336671655,1725006675742,-500.0,0.00024928,4]
[336671656,1725006675751,-3607.97,0.00024928,4]
[336671657,1725006675760,-500.0,0.00024928,4]
[336671658,1725006675770,-3607.97,0.00024928,4]
[336671659,1725006675780,-500.0,0.00024928,4]
[336671660,1725006675790,-500.0,0.00024928,4]
[336671661,1725006675804,-500.0,0.00024928,4]
[336671662,1725006675815,-500.0,0.00024928,4]
[336671663,1725006675826,-500.0,0.00024928,4]
[336671664,1725006675835,-500.0,0.00024928,4]
[336671665,1725006675844,-500.0,0.00024928,4]
[336671666,1725006675853,-500.0,0.00024928,4]
[336671667,1725006675863,-500.0,0.00024928,4]
[336671668,1725006675872,-500.0,0.00024928,4]
[336671669,1725006675882,-500.0,0.00024928,4]
[336671670,1725006675891,-500.0,0.00024928,4]
[336671671,1725006675901,-500.0,0.00024928,4]
[336671672,1725006675910,-500.0,0.00024928,4]
[336671673,1725006675919,-500.0,0.00024928,4]
[336671674,1725006675928,-500.0,0.00024928,4]
[336671675,1725006675936,-500.0,0.00024928,4]
[336671676,1725006675945,-500.0,0.00024928,4]
[336671677,1725006675955,-500.0,0.00024928,4]
[336671678,1725006675966,-334.98,0.00024928,4]
[336671679,1725006675975,-501.48,0.00024928,4]
[336671680,1725006675987,-501.48,0.00024928,4]
[336671681,1725006675996,-501.48,0.00024928,4]
[336671682,1725006676005,-501.48,0.00024928,4]
[336671683,1725006676017,-501.48,0.00024928,4]
[336671684,1725006676028,-501.48,0.00024928,4]
[336671685,1725006676037,-501.48,0.00024928,4]
[336671686,1725006676049,-500.0,0.00024928,4]
[336671687,1725006676058,-501.48,0.00024928,4]
[336671688,1725006676071,-500.0,0.00024928,4]
[336671689,1725006676082,-500.0,0.00024928,4]
[336671690,1725006676093,-500.0,0.00024928,4]
[336671691,1725006676104,-500.0,0.00024928,4]
[336671692,1725006676115,-500.0,0.00024928,4]
[336671693,1725006676124,-500.0,0.00024928,4]
[336671694,1725006676134,-500.0,0.00024928,4]
[336671695,1725006676145,-150.23064936,0.00024928,4]
[336671696,1725006676155,-500.0,0.00024928,4]
[336671697,1725006676166,-500.0,0.00024928,4]
[336671698,1725006676176,-500.0,0.00024928,4]
[336671699,1725006676187,-500.0,0.00024928,4]
[336671700,1725006676196,-500.0,0.00024928,4]
[336671701,1725006676205,-500.0,0.00024928,4]